bitfinex/quotes_ETHUSD_20250705
["timestamp","ask_amount","ask_price","bid_price","bid_amount"]
[1751735802006,4.18635806,2508.1,2507.8,1.961]
[1751735802206,0.1992,2508.1,2507.8,1.961]
[1751735802412,0.1992,2508.1,2507.8,11.961]
[1751735802613,0.1992,2508.1,2507.8,1.961]
[1751735803323,5.00359216,2508.1,2507.8,1.961]
[1751735803549,1.01650029,2508.1,2507.8,1.961]
[1751735803851,5.00358672,2508.1,2507.8,1.961]
[1751735804023,1.01650029,2508.1,2507.8,1.961]
[1751735804223,5.00361568,2508.1,2507.8,1.961]
[1751735804423,0.89906012,2508.0,2507.8,1.961]
[1751735804651,3.98744875,2507.9,2507.6,10.0]
[1751735804831,3.98744875,2507.9,2507.7,1.961]
[1751735805227,1.09826012,2508.0,2507.7,1.961]
[1751735805228,3.98755881,2507.8,2507.7,1.961]
[1751735805442,3.98744564,2507.9,2507.7,1.961]
[1751735805622,4.80481963,2507.9,2507.7,1.961]
[1751735806660,3.98755881,2507.8,2507.7,1.961]
[1751735807152,4.8048596,2507.9,2507.7,1.961]
[1751735807660,3.98755881,2507.8,2507.7,1.961]
[1751735807826,0.1992,2508.0,2507.7,1.961]
[1751735808232,5.8093933,2508.0,2507.7,1.961]
[1751735809336,1.82213239,2508.0,2507.7,1.961]
[1751735810368,5.80939557,2508.0,2507.7,1.961]
[1751735810538,3.98740464,2507.9,2507.7,1.961]
[1751735810753,5.80945599,2508.0,2507.7,1.961]
[1751735811280,13.86645599,2508.0,2507.7,1.961]
[1751735812381,8.2562,2508.0,2507.7,1.961]
[1751735814279,4.18645179,2508.0,2507.7,1.961]
[1751735814485,8.2562,2508.0,2507.7,1.961]
[1751735814776,12.24350909,2508.0,2507.7,1.961]
[1751735814983,12.24344821,2508.0,2507.7,1.961]
[1751735816381,0.1992,2508.0,2507.7,1.961]
[1751735816683,8.2562,2508.0,2507.8,10.0]
[1751735816855,8.2562,2508.0,2507.7,1.961]
[1751735817953,8.2562,2508.0,2507.8,10.0]
[1751735818578,8.2562,2508.0,2507.7,1.961]
[1751735818977,8.2562,2508.0,2507.8,10.0]
[1751735820256,8.2562,2508.0,2507.7,5.94870351]
[1751735820257,8.2562,2508.0,2507.7,1.961]
[1751735820587,8.2562,2508.0,2507.8,3.98755678]
[1751735820788,8.057,2508.1,2507.9,3.98739981]
[1751735821088,0.1992,2508.1,2507.8,3.98747601]
[1751735821990,0.1992,2508.1,2507.9,3.98739099]
[1751735823360,0.1992,2508.1,2507.8,3.98747858]
[1751735824092,0.1992,2508.1,2507.9,3.98737754]
[1751735824691,0.1992,2508.1,2507.8,3.9874708]
[1751735826399,0.1992,2508.1,2507.7,6.9965252]
[1751735826612,3.98731952,2508.0,2507.8,10.0]
[1751735826910,0.1992,2507.9,2507.7,1.961]
[1751735829691,0.1992,2507.9,2507.6,10.002]
[1751735829692,4.18660201,2507.9,2507.6,10.002]
[1751735829893,4.18660201,2507.9,2507.7,1.961]
[1751735830290,12.04455881,2507.8,2507.7,1.961]
[1751735830488,13.64775489,2507.8,2507.7,1.961]
[1751735830990,13.64775489,2507.8,2507.6,10.002]
[1751735830991,4.18691782,2507.7,2507.6,0.002]
[1751735836140,14.18691782,2507.7,2507.6,1e-08]
[1751735838244,12.24591782,2507.7,2507.6,1e-08]
[1751735838419,13.59525304,2507.7,2507.6,1e-08]
[1751735840317,5.53625304,2507.7,2507.6,1e-08]
[1751735840521,13.59525304,2507.7,2507.6,1e-08]
[1751735843241,5.53625304,2507.7,2507.6,1e-08]
[1751735843635,13.59525304,2507.7,2507.6,1e-08]
[1751735848796,5.53625304,2507.7,2507.6,1e-08]
[1751735849579,13.59525304,2507.7,2507.6,1e-08]
[1751735851984,0.1992,2507.7,2507.6,1e-08]
[1751735852258,8.2582,2507.7,2507.6,1e-08]
[1751735852979,0.1992,2507.7,2507.6,1e-08]
[1751735853184,8.2582,2507.7,2507.6,1e-08]
[1751735853384,0.001,2508.1,2507.6,3.98787686]
[1751735853614,0.1992,2507.9,2507.8,0.8064]
[1751735854653,0.1992,2507.9,2507.7,1.961]
[1751735854888,0.1992,2507.9,2507.7,5.94871498]
[1751735856287,0.1992,2507.9,2507.7,1.961]
[1751735857288,8.2572,2507.9,2507.7,1.961]
[1751735858388,8.2572,2507.9,2507.7,5.94869474]
[1751735859287,0.1992,2507.9,2507.7,5.94869474]
[1751735859502,8.2572,2507.9,2507.8,3.98755881]
[1751735861484,0.1992,2507.9,2507.8,3.98755881]
[1751735864517,0.1992,2507.9,2507.7,5.94863484]
[1751735865314,8.057,2508.0,2507.7,5.94863484]
[1751735867709,12.04436599,2508.0,2507.7,1.961]
[1751735868101,8.057,2508.0,2507.7,1.961]
[1751735868509,12.0442417,2508.0,2507.7,1.961]
[1751735871619,3.98741315,2507.9,2507.7,1.961]
[1751735871918,4.18661315,2507.9,2507.6,1e-08]
[1751735872494,0.1992,2507.9,2507.6,1e-08]
[1751735872688,3.98771782,2507.7,2507.6,1e-08]
[1751735872909,4.18664786,2507.9,2507.6,1e-08]
[1751735873218,3.98761972,2507.8,2507.6,1e-08]
[1751735873428,3.98771782,2507.7,2507.6,1e-08]
[1751735873930,3.98762286,2507.8,2507.6,1e-08]
[1751735874633,8.056,2507.7,2507.6,1e-08]
[1751735876714,12.04371782,2507.7,2507.6,1e-08]
[1751735876905,13.80543354,2507.7,2507.6,1e-08]
[1751735877107,14.00463354,2507.7,2507.6,1e-08]
[1751735877817,14.00563354,2507.7,2507.6,1e-08]
[1751735891170,5.94963354,2507.7,2507.6,1e-08]
[1751735891369,12.24391782,2507.7,2507.6,1e-08]
[1751735892854,8.2562,2507.7,2507.6,1e-08]
[1751735893259,12.24391782,2507.7,2507.6,1e-08]
[1751735896890,0.2002,2507.7,2507.6,1e-08]
[1751735897198,8.2562,2507.7,2507.6,1e-08]
[1751735897488,12.24391782,2507.7,2507.6,1e-08]
[1751735897786,0.2002,2507.7,2507.6,1e-08]
[1751735897991,8.2562,2507.7,2507.6,0.77790001]
[1751735898160,0.2002,2507.7,2507.6,0.77790001]
[1751735898657,8.2562,2507.7,2507.6,0.77790001]
[1751735901395,0.2002,2507.7,2507.6,0.77790001]
[1751735901568,0.2002,2507.7,2507.6,4.76577686]
[1751735901769,0.001,2507.7,2507.6,6.33298377]
[1751735902169,0.001,2507.7,2507.6,6.37286253]
[1751735902369,0.001,2507.7,2507.6,6.33298377]
[1751735903568,0.001,2507.7,2507.6,4.30510692]
[1751735903808,0.001,2507.7,2507.6,2.73790001]
[1751735910416,0.001,2507.7,2507.6,1e-08]
[1751735910615,0.001,2507.7,2507.6,1.95900001]
[1751735910921,3.98871782,2507.7,2507.6,1e-08]
[1751735912201,0.001,2507.7,2507.6,1e-08]
[1751735912733,0.001,2507.7,2507.6,13.73444782]
[1751735912935,0.001,2507.7,2507.6,15.86211692]
[1751735914529,0.001,2507.7,2507.6,16.41211692]
[1751735920131,0.001,2507.7,2507.6,8.90882472]
[1751735921615,0.001,2507.7,2507.6,4.92094787]
[1751735921939,0.001,2507.7,2507.6,2.15820001]
[1751735922811,3.98871782,2507.7,2507.6,1e-08]
[1751735923016,4.18791782,2507.7,2507.6,1e-08]
[1751735938338,14.18791782,2507.7,2507.6,1e-08]
[1751735938554,25.72305881,2507.7,2507.6,1e-08]
[1751735940652,24.86576661,2507.7,2507.6,1e-08]
[1751735941759,33.77805881,2507.7,2507.6,1e-08]
[1751735942853,33.77805881,2507.7,2507.5,1e-08]
[1751735942854,13.98787685,2507.6,2507.5,1e-08]
[1751735943364,14.74578396,2507.6,2507.5,1e-08]
[1751735943567,15.87707526,2507.6,2507.5,1e-08]
[1751735949985,3.98851308,2507.2,2507.1,1e-08]
[1751735950157,30.95580528,2507.2,2507.1,1e-08]
[1751735952267,22.04451308,2507.2,2507.1,1e-08]
[1751735954561,3.98851308,2507.2,2507.1,1e-08]
[1751735954759,12.04451308,2507.2,2507.1,1e-08]
[1751735955689,3.98851308,2507.2,2507.1,1e-08]
[1751735955989,12.04451308,2507.2,2507.1,1e-08]
[1751735956774,3.98841518,2507.3,2507.1,1e-08]
[1751735956973,3.98841518,2507.3,2507.2,0.7976]
[1751735957168,12.04441518,2507.3,2507.2,0.7976]
[1751735958888,3.98841518,2507.3,2507.2,0.7976]
[1751735959095,8.055,2507.3,2507.2,0.7976]
[1751735959301,12.043354,2507.3,2507.2,0.7976]
[1751735963491,8.055,2507.3,2507.2,0.7976]
[1751735963698,12.043354,2507.3,2507.2,0.7976]
[1751735968421,0.1992,2507.2,2507.1,1e-08]
[1751735969263,4.18771308,2507.2,2507.1,1e-08]
[1751735969533,0.1992,2507.2,2507.1,1e-08]
[1751735969733,8.2532,2507.2,2507.1,0.75780001]
[1751735970602,0.1992,2507.2,2507.1,0.75780001]
[1751735970806,8.2532,2507.2,2507.1,0.75780001]
[1751735972331,12.24171308,2507.2,2507.1,1e-08]
[1751735972529,13.06703308,2507.2,2507.1,1e-08]
[1751735972903,12.24171308,2507.2,2507.1,1e-08]
[1751735985246,12.24271308,2507.2,2507.1,1e-08]
[1751735990350,22.24271308,2507.2,2507.1,1e-08]
[1751735991280,13.98867217,2507.1,2507.0,1e-08]
[1751736008655,23.45096437,2507.1,2507.0,1e-08]
[1751736009188,23.45096437,2507.1,2506.4,0.002]
[1751736009189,3.98962696,2506.5,2506.4,0.002]
[1751736009389,4.18898614,2506.4,2506.1,2.0006585]
[1751736009558,4.18898614,2506.4,2506.1,0.0426585]
[1751736010593,13.10127834,2506.4,2506.1,0.0426585]
[1751736010891,23.10127834,2506.4,2506.1,0.0426585]
[1751736011191,14.18898614,2506.4,2506.1,0.0426585]
[1751736014889,22.24298614,2506.4,2506.1,0.8648585]
[1751736015272,22.24298614,2506.4,2506.1,0.0426585]
[1751736016674,14.18898614,2506.4,2506.1,0.0426585]
[1751736016869,22.24398614,2506.4,2506.1,0.0426585]
[1751736017069,14.18898614,2506.4,2506.1,0.0426585]
[1751736017275,24.46079706,2506.4,2506.1,0.0426585]
[1751736020183,24.46079706,2506.4,2506.3,1e-08]
[1751736021896,25.01079706,2506.4,2506.3,1e-08]
[1751736022200,25.01079706,2506.4,2506.0,0.02]
[1751736022201,13.99026375,2506.1,2506.0,0.02]
[1751736022373,23.58259292,2506.1,2506.0,1e-08]
[1751736023385,14.73962298,2506.0,2505.9,1e-08]
[1751736023621,14.73962298,2506.0,2505.8,1e-08]
[1751736023622,3.99058222,2505.9,2505.8,1e-08]
[1751736023793,3.99058222,2505.9,2505.2,0.02]
[1751736023794,13.99153793,2505.3,2505.2,0.02]
[1751736023996,22.04653793,2505.3,2505.2,0.02]
[1751736025112,13.99169726,2505.2,2505.1,1e-08]
[1751736025305,13.99169726,2505.2,2505.0,0.02]
[1751736025306,3.99249411,2504.7,2504.6,0.85025851]
[1751736025499,12.44774352,2504.7,2504.6,0.85025851]
[1751736025991,12.44774352,2504.7,2504.6,0.05265851]
[1751736026819,12.44774352,2504.7,2504.6,0.03989651]
[1751736026980,3.99281293,2504.5,2504.4,0.00989651]
[1751736027182,12.04881293,2504.5,2504.4,0.00989651]
[1751736027429,13.18689269,2504.5,2504.4,0.00989651]
[1751736028993,23.18689269,2504.5,2504.4,0.00989651]
[1751736031106,15.13089269,2504.5,2504.4,0.00989651]
[1751736031305,23.19489269,2504.5,2504.4,0.00989651]
[1751736031506,23.74489269,2504.5,2504.4,0.00989651]
[1751736031745,3.99313181,2504.3,2504.2,0.0427635]
[1751736032023,24.27294273,2504.3,2504.2,0.0427635]
[1751736032222,24.82294273,2504.3,2504.2,0.0427635]
[1751736032522,3.99376971,2503.9,2503.8,0.859127]
[1751736032821,3.99372674,2504.0,2503.8,0.859127]
[1751736033120,12.05676971,2503.9,2503.8,0.859127]
[1751736033593,2.21681092,2504.3,2503.8,0.859127]
[1751736033799,10.20771809,2504.5,2503.8,0.859127]
[1751736033800,3.99362736,2504.0,2503.8,0.859127]
[1751736034024,12.05676971,2503.9,2503.8,0.859127]
[1751736034688,8.063,2503.9,2503.8,0.859127]
[1751736037220,8.064,2503.9,2503.8,0.859127]
[1751736037927,0.1992,2504.2,2503.9,0.7976]
[1751736038097,8.2742,2504.2,2504.0,0.7976]
[1751736038417,12.06837411,2504.2,2504.0,0.7976]
[1751736039630,3.99345074,2504.1,2504.0,0.7976]
[1751736040143,3.99373316,2504.0,2503.8,0.833127]
[1751736040367,12.07076971,2503.9,2503.8,0.833127]
[1751736043124,8.077,2503.9,2503.8,0.833127]
[1751736044659,12.07076971,2503.9,2503.8,0.833127]
[1751736045160,12.07076971,2503.9,2503.8,0.035527]
[1751736049241,12.07076971,2503.9,2503.4,0.7684]
[1751736049242,3.99440782,2503.5,2503.4,0.753927]
[1751736049468,12.07040782,2503.5,2503.4,0.753927]
[1751736051655,8.076,2503.5,2503.4,0.753927]
[1751736051868,8.076,2503.5,2503.4,0.703927]
[1751736052968,12.07040782,2503.5,2503.4,0.703927]
[1751736053334,8.076,2503.5,2503.4,0.703927]
[1751736054448,12.07040782,2503.5,2503.4,0.703927]
[1751736054650,0.1992,2503.4,2503.3,0.0427635]
[1751736055077,4.19376738,2503.4,2503.3,0.0427635]
[1751736055262,3.99456738,2503.4,2503.3,0.0427635]
[1751736055661,8.076,2503.5,2503.3,0.0427635]
[1751736055864,12.07043971,2503.5,2503.3,0.0427635]
[1751736056575,3.994167,2503.7,2503.4,0.7906]
[1751736056879,8.074,2503.6,2503.4,0.7906]
[1751736057352,12.06831091,2503.6,2503.4,0.7906]
[1751736058381,8.074,2503.6,2503.4,0.7906]
[1751736058578,3.9948374,2503.9,2503.4,3.99447665]
[1751736058579,8.074,2503.5,2503.4,3.99447665]
[1751736058784,3.99477882,2503.9,2503.5,0.804]
[1751736058985,8.074,2503.8,2503.5,0.804]
[1751736061287,12.06794366,2503.8,2503.5,0.804]
[1751736061588,3.99416633,2503.7,2503.5,0.804]
[1751736061790,8.073,2503.6,2503.5,0.804]
[1751736063295,8.072,2503.6,2503.5,0.804]
[1751736066293,0.1992,2503.7,2503.5,0.804]
[1751736066479,8.07,2503.6,2503.5,0.804]
[1751736068765,12.06424828,2503.6,2503.5,0.804]
[1751736073817,0.1992,2503.7,2503.5,0.804]
[1751736074025,8.066,2503.6,2503.5,0.804]
[1751736074318,8.2652,2503.7,2503.6,0.804]
[1751736074698,12.25928874,2503.7,2503.6,0.804]
[1751736075424,8.2652,2503.7,2503.6,0.804]
[1751736075713,8.2662,2503.7,2503.6,0.804]
[1751736077019,0.2002,2503.7,2503.6,0.804]
[1751736077222,8.2682,2503.7,2503.6,0.804]
[1751736078619,8.068,2503.7,2503.6,1.28804552]
[1751736079829,8.068,2503.7,2503.6,5.2822938]
[1751736080599,0.001,2503.7,2503.6,5.2822938]
[1751736080799,0.001,2503.7,2503.6,5.32223628]
[1751736080800,8.067,2503.7,2503.6,5.32223628]
[1751736080998,8.067,2503.7,2503.6,5.2822938]
[1751736081820,0.001,2503.7,2503.6,5.2822938]
[1751736082317,0.001,2503.7,2503.6,5.32223628]
[1751736082500,0.001,2503.7,2503.6,5.2822938]
[1751736084418,0.001,2503.7,2503.6,5.32223628]
[1751736085510,0.001,2503.7,2503.6,0.84394248]
[1751736085713,0.001,2503.7,2503.6,0.804]
[1751736086526,0.001,2503.7,2503.6,4.79824828]
[1751736086726,0.001,2503.7,2503.6,0.804]
[1751736088323,0.001,2503.7,2503.4,2.7308]
[1751736088324,3.99508874,2503.7,2503.4,2.7308]
[1751736088533,4.19428874,2503.7,2503.4,2.7308]
[1751736089614,4.19428874,2503.7,2503.4,0.7668]
[1751736090421,12.05833491,2503.6,2503.4,0.7668]
[1751736090804,3.99440782,2503.5,2503.4,0.7668]
[1751736091532,12.05832182,2503.6,2503.4,0.002]
[1751736095233,8.064,2503.6,2503.4,0.002]
[1751736095440,12.05827549,2503.6,2503.4,0.002]
[1751736095626,3.99440782,2503.5,2503.4,0.002]
[1751736095812,13.99440782,2503.5,2503.4,0.002]
[1751736096134,13.99440782,2503.5,2503.3,0.0412905]
[1751736096135,13.99456738,2503.4,2503.3,0.0412905]
[1751736096325,22.10556738,2503.4,2503.3,0.0412905]
[1751736096636,24.23446077,2503.4,2503.3,0.0412905]
[1751736098840,2.12889339,2503.4,2503.3,0.0412905]
[1751736099011,0.001,2503.7,2503.3,0.0412905]
[1751736099638,8.116,2503.6,2503.3,0.0412905]
[1751736099846,8.116,2503.6,2503.3,4.03598377]
[1751736100640,0.001,2503.7,2503.3,4.03598377]
[1751736100848,8.115,2503.6,2503.4,3.99445061]
[1751736101342,8.115,2503.6,2503.3,4.0359376]
[1751736102448,8.115,2503.5,2503.3,4.0359376]
[1751736102837,8.115,2503.5,2503.4,3.99456738]
[1751736103144,0.001,2503.7,2503.4,3.99456738]
[1751736103343,8.114,2503.5,2503.4,3.99456738]
[1751736104752,8.114,2503.5,2503.3,4.91602547]
[1751736104950,0.001,2503.7,2503.3,0.92135084]
[1751736105138,8.113,2503.6,2503.3,0.0412905]
[1751736106148,0.1992,2503.5,2503.3,0.0412905]
[1751736106338,3.99443791,2503.5,2503.3,0.0412905]
[1751736107254,3.99443791,2503.5,2502.8,0.0426385]
[1751736107255,3.99536537,2502.9,2502.8,0.0426385]
[1751736107460,12.11636537,2502.9,2502.8,0.0426385]
[1751736107825,12.14136537,2502.9,2502.8,0.0426385]
[1751736108853,3.99536537,2502.9,2502.8,0.0426385]
[1751736109055,3.99536537,2502.9,2502.3,2.8216385]
[1751736109056,12.14036537,2502.9,2502.6,0.0026385]
[1751736109261,12.14053346,2502.8,2502.6,0.0026385]
[1751736109960,3.99568466,2502.7,2502.6,0.0026385]
[1751736110157,3.99568466,2502.7,2502.3,2.774277]
[1751736110362,12.14053227,2502.8,2502.3,2.774277]
[1751736110363,3.99588622,2502.6,2502.3,2.774277]
[1751736110661,12.14053273,2502.8,2502.3,2.774277]
[1751736110662,3.99576344,2502.7,2502.3,2.774277]
[1751736110962,3.99576344,2502.7,2502.3,0.813277]
[1751736111464,8.144,2502.6,2502.3,0.813277]
[1751736114862,3.99576344,2502.7,2502.3,0.813277]
[1751736115165,8.139,2502.6,2502.3,0.813277]
[1751736115663,3.99576344,2502.7,2502.3,0.813277]
[1751736115864,8.139,2502.6,2502.3,0.813277]
[1751736116543,12.13485213,2502.6,2502.3,0.813277]
[1751736116958,3.99585213,2502.6,2502.3,0.813277]
[1751736117262,8.139,2502.5,2502.3,0.813277]
[1751736117654,8.139,2502.5,2502.4,3.99616368]
[1751736117835,8.139,2502.5,2502.3,4.80948225]
[1751736118544,8.139,2502.5,2502.3,4.81148225]
[1751736119585,0.1992,2502.7,2502.4,3.99604492]
[1751736119740,8.135,2502.6,2502.5,3.9959708]
[1751736120048,8.135,2502.7,2502.6,0.7814]
[1751736123148,8.133,2502.7,2502.6,0.7814]
[1751736123540,8.133,2502.7,2502.4,0.84786163]
[1751736124056,8.133,2502.7,2502.4,4.84402412]
[1751736125471,12.12869256,2502.7,2502.4,0.8079]
[1751736125672,3.99616368,2502.4,2502.3,0.002]
[1751736125872,22.15716368,2502.4,2502.3,0.002]
[1751736129442,13.99616368,2502.4,2502.3,0.002]
[1751736129667,22.15416368,2502.4,2502.3,0.002]
[1751736130374,22.68572877,2502.4,2502.3,0.002]
[1751736131853,31.64365532,2502.4,2502.3,0.002]
[1751736134351,22.68572877,2502.4,2502.3,0.002]
[1751736135279,3.9969623,2501.9,2501.8,0.0426385]
[1751736135472,12.1539623,2501.9,2501.8,0.0426385]
[1751736135662,3.99744163,2501.6,2501.5,1.9826385]
[1751736135863,12.15444163,2501.6,2501.5,1.9826385]
[1751736136167,3.99776125,2501.4,2501.3,0.7951385]
[1751736136470,12.15676125,2501.4,2501.3,0.0426385]
[1751736136662,12.35596125,2501.4,2501.3,0.0426385]
[1751736136860,3.99822695,2501.2,2501.0,2.0532677]
[1751736137066,12.15624077,2501.1,2501.0,2.0532677]
[1751736137260,12.15624077,2501.1,2501.0,0.0622677]
[1751736137985,3.99824077,2501.1,2501.0,0.0622677]
[1751736138283,12.96187343,2501.1,2501.0,0.0622677]
[1751736139589,12.96287343,2501.1,2501.0,0.0622677]
[1751736139882,12.96187343,2501.1,2501.0,0.0622677]
[1751736140556,12.96187343,2501.1,2501.0,0.0642677]
[1751736142598,0.79963266,2501.1,2501.0,0.0642677]
[1751736142788,0.39477241,2501.4,2501.0,0.8185677]
[1751736142992,12.15992799,2501.3,2501.0,0.8185677]
[1751736143494,3.99798472,2501.3,2501.0,0.0642677]
[1751736143894,8.162,2501.2,2501.0,0.0642677]
[1751736144496,4.39258102,2501.4,2501.1,0.7543]
[1751736144686,4.39254111,2501.4,2501.1,0.7543]
[1751736144884,1.21539623,2501.9,2501.1,0.7543]
[1751736145085,3.99742757,2501.7,2501.1,4.75247124]
[1751736145406,12.15846519,2501.6,2501.1,4.75247124]
[1751736146184,8.161,2501.6,2501.0,0.0642677]
[1751736146387,3.99818499,2501.2,2501.0,0.0642677]
[1751736146702,8.16,2501.1,2501.0,0.0642677]
[1751736148814,12.15824077,2501.1,2501.0,0.0642677]
[1751736149828,8.16,2501.1,2501.0,0.0642677]
[1751736150001,12.15824077,2501.1,2501.0,0.0642677]
[1751736151619,4.39798218,2501.2,2501.0,0.0642677]
[1751736151817,8.158,2501.1,2501.0,0.0642677]
[1751736151985,8.3562,2501.1,2501.0,0.0642677]
[1751736153032,8.3552,2501.1,2501.0,0.0642677]
[1751736154723,0.1992,2501.1,2501.0,0.0642677]
[1751736154925,8.3562,2501.1,2501.0,0.0642677]
[1751736155218,8.3542,2501.1,2501.0,0.0642677]
[1751736155922,8.3532,2501.1,2501.0,0.0642677]
[1751736157806,0.1992,2501.1,2501.0,0.0642677]
[1751736158122,8.3522,2501.1,2501.0,0.8881677]
[1751736159830,0.1992,2501.1,2501.0,4.88656833]
[1751736160034,8.151,2501.1,2501.0,4.88656833]
[1751736162333,0.1992,2501.2,2501.1,3.99824077]
[1751736162537,8.3452,2501.2,2501.1,3.99824077]
[1751736164459,0.1992,2501.2,2501.1,3.99824077]
[1751736164755,0.1992,2501.4,2501.2,3.99803751]
[1751736165538,8.143,2501.3,2501.2,3.99803751]
[1751736165930,8.143,2501.3,2501.1,3.99815145]
[1751736167342,8.143,2501.3,2501.2,3.99808092]
[1751736167515,8.141,2501.3,2501.2,3.99802564]
[1751736167717,8.141,2501.3,2501.2,4.83022564]
[1751736168146,8.14,2501.3,2501.2,4.83022564]
[1751736169753,0.1992,2501.4,2501.2,4.83022564]
[1751736169958,8.14,2501.3,2501.2,4.83022564]
[1751736171049,0.1992,2501.4,2501.2,4.83022564]
[1751736171247,8.138,2501.3,2501.2,4.83022564]
[1751736171542,0.1992,2501.4,2501.3,3.99792108]
[1751736171753,0.1992,2501.8,2501.4,3.99772875]
[1751736171952,8.136,2501.7,2501.4,3.99772875]
[1751736172124,8.136,2501.7,2501.4,4.01390605]
[1751736173517,9.36923365,2501.7,2501.4,0.0161773]
[1751736173718,4.1967484,2501.6,2501.4,0.0161773]
[1751736173953,3.99760143,2501.5,2501.4,0.0161773]
[1751736177341,12.95552798,2501.5,2501.4,0.0161773]
[1751736177682,3.99824077,2501.1,2501.0,0.0480904]
[1751736177850,12.14224077,2501.1,2501.0,0.0480904]
[1751736179200,22.14224077,2501.1,2501.0,0.0480904]
[1751736179882,13.99824077,2501.1,2501.0,0.0480904]
[1751736180209,22.14324077,2501.1,2501.0,0.0480904]
[1751736180368,22.94892725,2501.1,2501.0,0.0480904]
[1751736181770,23.49892725,2501.1,2501.0,1e-08]
[1751736182106,32.4568538,2501.1,2501.0,1e-08]
[1751736182503,32.4548538,2501.1,2501.0,1e-08]
[1751736182804,32.4638538,2501.1,2501.0,1e-08]
[1751736184706,32.4638538,2501.1,2500.5,0.0460904]
[1751736184707,3.99904023,2500.6,2500.5,0.0460904]
[1751736184908,31.10696678,2500.6,2500.5,0.0460904]
[1751736185210,33.65696678,2500.6,2500.5,1e-08]
[1751736187528,33.66596678,2500.6,2500.5,1e-08]
[1751736187705,33.66596678,2500.6,2499.9,0.0460904]
[1751736187706,0.55,2500.5,2499.7,0.00609041]
[1751736187916,4.000252,2499.9,2499.7,0.00609041]
[1751736188426,3.99969255,2500.2,2499.8,0.7728]
[1751736188728,12.1558599,2500.1,2499.8,0.7728]
[1751736188930,12.1558599,2500.1,2499.8,0.7228]
[1751736189294,12.1558599,2500.1,2499.8,0.726346]
[1751736189924,13.99959705,2500.3,2499.8,4.72665822]
[1751736190101,8.155,2500.2,2499.8,4.72665822]
[1751736190296,0.2,2499.9,2499.8,4.72665822]
[1751736190502,3.99874548,2500.8,2500.1,3.99981998]
[1751736190702,3.9986947,2500.9,2499.9,6.0401616]
[1751736191013,0.1992,2500.5,2500.2,3.999603]
[1751736191214,8.16,2500.4,2500.2,3.999603]
[1751736191641,0.1992,2500.5,2500.0,0.1992]
[1751736191806,0.1992,2500.5,2500.1,0.0399984]
[1751736192001,3.99816466,2501.2,2500.6,3.99895645]
[1751736192315,0.1992,2500.8,2500.6,3.99895645]
[1751736192499,8.165,2500.7,2500.5,3.99913632]
[1751736192843,0.1992,2500.6,2500.5,3.99913632]
[1751736193530,0.1992,2500.8,2500.6,3.99896494]
[1751736193730,8.165,2500.7,2500.6,3.99896494]
[1751736193911,8.165,2500.7,2500.4,4.97127819]
[1751736194314,8.165,2500.7,2500.4,0.7728]
[1751736194514,0.1992,2500.6,2500.4,0.7728]
[1751736195331,0.1992,2500.6,2500.4,4.77215152]
[1751736196903,0.1992,2500.6,2500.5,3.99920015]
[1751736197136,8.3672,2500.6,2500.5,4.76880015]
[1751736197436,0.1992,2500.6,2500.5,4.76880015]
[1751736197822,8.165,2500.7,2500.6,3.99904023]
[1751736198139,8.165,2500.8,2500.7,3.99876499]
[1751736198340,0.1992,2500.9,2500.8,4.7766204]
[1751736198513,8.3632,2500.9,2500.8,0.7779]
[1751736199921,8.3632,2500.9,2500.8,4.7766204]
[1751736199922,8.164,2500.9,2500.8,4.7766204]
[1751736200121,8.164,2500.9,2500.8,0.7779]
[1751736200333,8.164,2500.9,2500.8,4.7766204]
[1751736201537,0.1992,2501.0,2500.8,4.7766204]
[1751736201731,8.162,2500.9,2500.8,4.7766204]
[1751736202442,0.1992,2501.0,2500.9,3.99856051]
[1751736202735,0.1992,2501.0,2500.8,0.7779]
[1751736202736,8.3612,2501.0,2500.8,0.7779]
[1751736203403,8.3612,2501.0,2500.8,4.77659299]
[1751736203640,8.3612,2501.0,2500.9,3.99856051]
[1751736203825,8.3612,2501.0,2500.8,0.7779]
[1751736204027,0.1992,2500.9,2500.8,0.7779]
[1751736204539,0.1992,2500.9,2500.8,4.7766204]
[1751736207624,0.001,2501.3,2500.9,3.99856051]
[1751736207949,0.1992,2501.1,2500.9,3.99856051]
[1751736208954,0.001,2501.3,2500.9,3.99856051]
[1751736209159,0.2002,2501.3,2501.2,4.79558092]
[1751736211152,0.2002,2501.3,2501.2,5.67497362]
[1751736211835,0.2002,2501.3,2501.2,4.79558092]
[1751736212037,0.2002,2501.3,2501.2,0.7975]
[1751736212268,0.2002,2501.3,2501.2,4.79558092]
[1751736212933,0.2002,2501.3,2501.2,0.7975]
[1751736213140,0.2002,2501.3,2501.0,5.99831282]
[1751736213327,0.2002,2501.3,2501.0,6.79581282]
[1751736215562,0.2002,2501.3,2501.0,4.00480541]
[1751736215735,0.2002,2501.3,2501.2,3.99808092]
[1751736216247,0.2002,2501.3,2501.1,3.99812826]
[1751736218740,0.2002,2501.3,2501.0,6.79581219]
[1751736219964,0.2002,2501.3,2501.1,3.99822558]
[1751736221158,0.2002,2501.3,2501.2,3.99808092]
[1751736221542,0.001,2501.3,2501.2,4.03806172]
[1751736221747,0.001,2501.3,2501.2,3.99808092]
[1751736224555,0.001,2501.3,2501.1,4.19741083]
[1751736225384,0.001,2501.3,2501.1,0.1992]
[1751736225585,0.001,2501.3,2501.0,2.7955]
[1751736227074,0.001,2501.3,2501.0,6.79384547]
[1751736227990,0.001,2501.3,2501.0,1.998]
[1751736230193,0.001,2501.3,2501.0,5.99638297]
[1751736231764,0.001,2501.3,2501.0,1.998]
[1751736232096,0.001,2501.3,2501.1,3.99822845]
[1751736233068,8.134,2501.2,2501.1,3.99822845]
[1751736233690,0.001,2501.3,2501.2,3.99808092]
[1751736233904,8.134,2501.3,2501.2,0.815]
[1751736234891,8.134,2501.3,2501.2,4.81308092]